bitfinex-derivatives/quotes_ETHF0:USTF0_20251107
["timestamp","ask_amount","ask_price","bid_price","bid_amount"]
[1762525166210,4.55201677,3230.8,3230.7,0.00464303]
[1762525166507,12.55201677,3230.8,3230.7,0.00464303]
[1762525166704,12.55201677,3230.8,3230.7,4.303e-05]
[1762525167609,4.55201677,3230.8,3230.7,4.303e-05]
[1762525168203,12.55201677,3230.8,3230.7,4.303e-05]
[1762525168807,4.55201677,3230.8,3230.7,4.303e-05]
[1762525169210,5.66209026,3230.8,3230.7,4.303e-05]
[1762525169406,4.00543677,3230.8,3230.7,0.74024303]
[1762525170108,0.00355301,3231.1,3231.0,0.88355]
[1762525171413,0.50529301,3231.1,3231.0,0.1434]
[1762525171613,0.00355301,3231.1,3231.0,0.88355]
[1762525172112,0.50529301,3231.1,3231.0,0.88355]
[1762525172512,0.00355301,3231.1,3231.0,0.88355]
[1762525172910,0.00355301,3231.1,3231.0,4.09135]
[1762525173409,0.00464303,3231.4,3231.3,0.7401]
[1762525173609,0.50164,3231.9,3231.8,0.50162]
[1762525173809,0.50164,3231.9,3231.8,0.74002]
[1762525174107,3.7094,3232.0,3231.9,0.50161]
[1762525174305,3.2078,3232.0,3231.9,0.74001]
[1762525174511,0.50158,3232.2,3232.1,0.50157]
[1762525174712,0.50532213,3232.2,3232.1,0.50157]
[1762525175110,0.50532213,3232.2,3232.1,0.73997]
[1762525175509,0.50532213,3232.2,3232.1,0.2384]
[1762525176109,0.50158,3232.1,3232.0,0.1434]
[1762525176309,0.00374213,3232.2,3232.1,0.73995]
[1762525176916,3.2078,3233.2,3233.0,0.1434]
[1762525177314,0.50139,3233.1,3233.0,0.1434]
[1762525177514,3.2078,3233.2,3232.5,0.1434]
[1762525177710,3.2078,3233.2,3233.0,0.1434]
[1762525177915,0.50139,3233.1,3233.0,0.1434]
[1762525178718,3.21131513,3233.2,3233.1,0.2384]
[1762525179019,0.5014,3233.1,3233.0,0.64481]
[1762525179219,0.50489513,3233.2,3233.1,0.5014]
[1762525179413,0.50489513,3233.2,3233.0,0.1434]
[1762525179414,0.5014,3233.1,3233.0,0.1434]
[1762525179614,0.5014,3233.1,3233.0,0.64481]
[1762525179816,0.5014,3233.1,3233.0,0.3818]
[1762525180212,3.2078,3234.4,3233.6,0.50132]
[1762525180515,0.79792855,3234.3,3233.6,0.50132]
[1762525180719,0.79792855,3234.3,3233.5,0.1434]
[1762525180913,0.50123,3234.2,3234.0,0.65505]
[1762525181223,0.00400698,3234.2,3234.1,0.75533]
[1762525182316,0.00400698,3234.2,3234.1,0.2541]
[1762525183323,3.2078,3234.8,3234.5,0.1538]
[1762525183524,0.50115,3234.7,3234.5,0.1538]
[1762525183720,0.50124,3234.1,3234.0,0.1538]
[1762525184119,3.2078,3234.8,3234.0,0.1538]
[1762525184325,0.00464303,3234.7,3234.5,0.1538]
[1762525184519,0.50116,3234.6,3234.5,0.1538]
[1762525185425,0.50116,3234.6,3234.5,0.4079]
[1762525185927,0.50116,3234.6,3234.5,0.90908]
[1762525186127,0.00464303,3234.7,3234.6,0.75526]
[1762525186725,0.00464303,3234.7,3234.6,0.2541]
[1762525187031,0.50116,3234.6,3234.5,0.1538]
[1762525187830,0.50121,3234.3,3234.2,3.2078]
[1762525188330,0.50121,3234.3,3234.2,3.4619]
[1762525188929,0.50121,3234.3,3234.2,3.2078]
[1762525189123,0.00464303,3234.7,3234.6,0.2541]
[1762525189328,0.50116,3234.6,3234.5,0.1538]
[1762525190330,0.00464303,3234.7,3234.5,0.4079]
[1762525190531,0.50115,3234.6,3234.5,0.4079]
[1762525190934,0.50115,3234.6,3234.5,0.90907]
[1762525191134,0.50115,3234.6,3234.5,0.4079]
[1762525191830,3.2078,3235.3,3235.1,0.50107]
[1762525192035,0.50106,3235.2,3235.1,0.50107]
[1762525192232,3.2078,3235.3,3235.2,0.50106]
[1762525192427,3.2078,3235.3,3234.9,3.2078]
[1762525192828,0.50107,3235.2,3235.1,0.75516]
[1762525193036,0.50107,3235.2,3235.1,0.2541]
[1762525193532,0.50109,3235.1,3234.9,3.2078]
[1762525193730,0.50109,3235.0,3234.9,3.2078]
[1762525194235,0.0034737,3235.3,3234.8,0.00464303]
[1762525194236,0.50111,3234.9,3234.8,0.00464303]
[1762525194633,0.0034737,3235.3,3234.8,0.00464303]
[1762525194830,0.50106,3235.2,3235.1,0.50107]
[1762525195033,0.50106,3235.2,3235.1,0.75517]
[1762525195634,0.0034737,3235.3,3235.2,0.75516]
[1762525196530,0.5045137,3235.3,3235.2,0.75516]
[1762525196738,0.0034737,3235.3,3235.2,0.75516]
[1762525197437,0.5045137,3235.3,3235.2,0.75516]
[1762525197626,0.0034737,3235.3,3235.2,0.75516]
[1762525197827,0.5045137,3235.3,3235.2,0.75516]
[1762525198032,0.5045137,3235.3,3235.2,0.2541]
[1762525199542,0.5045137,3235.3,3235.2,10.28016]
[1762525200033,0.0034737,3235.3,3235.2,10.28016]
[1762525200241,0.0034737,3235.3,3234.9,3.2078]
[1762525200435,0.74879,3235.0,3234.9,3.2078]
[1762525201633,0.0034737,3235.3,3235.2,0.74966]
[1762525201841,0.50109,3235.0,3234.9,3.2078]
[1762525202040,0.5011,3234.9,3234.8,0.00464303]
[1762525202644,0.50123,3234.1,3234.0,0.00230602]
[1762525202833,0.1173,3234.0,3232.5,0.1499]
[1762525203038,3.70925,3232.7,3232.5,0.1499]
[1762525203343,3.70925,3232.7,3231.9,3.468]
[1762525203344,3.2078,3232.7,3231.9,3.468]
[1762525203535,3.2078,3232.7,3231.7,3.2078]
[1762525203536,3.2078,3232.1,3231.5,0.1499]
[1762525203739,0.50159,3231.8,3231.7,0.00464303]
[1762525203941,0.504275,3231.8,3231.7,0.00765351]
[1762525204140,0.002685,3231.8,3231.7,0.00765351]
[1762525204349,0.250385,3231.8,3231.7,0.00765351]
[1762525204539,0.002685,3231.8,3231.7,0.00765351]
[1762525204845,0.002685,3231.8,3231.7,0.25625351]
[1762525205436,0.002685,3231.8,3231.7,0.00765351]
[1762525206141,0.002685,3231.8,3231.7,0.25625351]
[1762525206342,0.002685,3231.8,3231.7,0.00765351]
[1762525206545,0.250385,3231.8,3231.7,0.00765351]
[1762525207049,1.04478075,3231.8,3231.7,0.00765351]
[1762525207542,1.04478075,3231.8,3224.6,27.9091]
[1762525207543,8.79708075,3231.8,3230.5,3.3577]
[1762525207734,0.50177,3230.7,3230.5,3.3577]
[1762525208443,0.50177,3230.7,3229.2,40.9499]
[1762525208444,0.50182,3230.3,3230.1,0.50184]
[1762525208644,0.50182,3230.3,3230.1,0.00335974]
[1762525208845,0.00464303,3230.5,3230.2,0.50183]
[1762525209151,0.50182,3230.3,3230.1,0.00335974]
[1762525209345,0.00464303,3230.5,3230.1,0.00335974]
[1762525209543,0.00464303,3230.5,3230.4,0.1499]
[1762525210050,0.50183,3230.2,3230.1,0.25195974]
[1762525210261,0.50183,3230.2,3230.1,0.00335974]
[1762525210461,0.2477,3230.2,3230.1,0.00335974]
[1762525210659,3.21244303,3230.5,3230.1,0.00335974]
[1762525211062,3.21244303,3230.5,3230.4,0.1499]
[1762525211661,0.00464303,3230.5,3230.4,0.3985]
[1762525212762,0.50642303,3230.5,3230.3,3.2078]
[1762525213366,0.50183,3230.2,3230.1,0.00335974]
[1762525213565,3.71423303,3230.5,3230.1,0.75379974]
[1762525213765,3.21244303,3230.5,3230.4,0.3985]
[1762525214163,0.00464303,3230.5,3230.4,0.3985]
[1762525214573,0.50165,3231.4,3231.2,0.50167]
[1762525215162,3.2078,3231.5,3231.4,0.2486]
[1762525215564,0.00732803,3231.8,3231.7,0.2486]
[1762525215768,2.803e-05,3231.8,3231.7,3.4564]
[1762525216068,0.5014,3233.0,3232.8,0.65133]
[1762525216264,0.5014,3233.0,3232.8,0.1499]
[1762525216458,3.2078,3233.5,3233.3,0.74995]
[1762525216662,3.2078,3233.5,3233.4,0.3985]
[1762525216860,3.21177127,3233.5,3233.4,0.40157606]
[1762525217469,0.00397127,3233.5,3233.4,0.40157606]
[1762525217865,0.00397127,3233.5,3233.4,0.00307606]
[1762525217866,3.45947127,3233.5,3233.4,0.00307606]
[1762525218369,0.74907,3233.2,3233.1,0.00464303]
[1762525218967,3.21177127,3233.5,3233.1,0.00464303]
[1762525219177,0.50135,3233.3,3233.1,0.00464303]
[1762525219472,0.2477,3233.2,3233.1,0.00741098]
[1762525220369,0.50135,3233.3,3233.1,0.00741098]
[1762525221175,0.2477,3233.2,3233.1,0.00741098]
[1762525222764,8.2477,3233.2,3233.1,0.00741098]
[1762525222971,0.2477,3233.2,3233.1,0.00741098]
[1762525223178,0.50155,3232.0,3231.9,3.2078]
[1762525223367,0.50165,3231.4,3231.3,3.2078]
[1762525224072,0.50165,3231.4,3231.3,3.21169575]
[1762525224273,0.50165,3231.4,3231.3,0.00389575]
[1762525224475,0.00464303,3231.7,3231.3,0.50555575]
[1762525224778,0.50164,3231.5,3231.3,0.00389575]
[1762525225077,3.4555,3231.4,3231.3,0.00389575]
[1762525225575,3.70945,3231.4,3231.3,0.00389575]
[1762525225777,3.95715,3231.4,3231.3,0.00389575]
[1762525226371,0.74939,3231.1,3231.0,0.00464303]
[1762525226576,0.74939,3231.1,3231.0,3.03e-06]
[1762525226773,8.74939,3231.1,3231.0,3.03e-06]
[1762525226975,0.74939,3231.1,3231.0,3.03e-06]
[1762525227175,0.50169,3231.1,3231.0,3.03e-06]
[1762525227479,0.50482274,3231.1,3231.0,0.00350601]
[1762525228478,0.00313274,3231.1,3231.0,0.00350601]
[1762525228774,0.00313274,3231.1,3231.0,0.25210601]
[1762525228969,0.00313274,3231.1,3231.0,0.00350601]
[1762525229173,0.50482274,3231.1,3231.0,0.00350601]
[1762525229573,0.00313274,3231.1,3231.0,0.00350601]
[1762525229770,0.50482274,3231.1,3231.0,0.00350601]
[1762525230676,0.75992274,3231.1,3230.3,3.2078]
[1762525230877,3.2078,3230.4,3228.0,3.188]
[1762525231082,3.2078,3228.9,3228.0,3.188]
[1762525231283,3.2078,3228.9,3228.8,0.2658]
[1762525231877,0.00464303,3229.2,3229.1,0.7678]
[1762525232080,0.00464303,3229.2,3229.1,10.4618]
[1762525232771,0.00464303,3229.2,3229.1,0.7678]
[1762525232982,0.00464303,3229.2,3229.1,4.2798]
[1762525233177,0.00464303,3229.2,3229.1,0.2658]
[1762525233884,0.00464303,3229.2,3229.1,8.2658]
[1762525234287,3.2078,3229.8,3229.3,0.2658]
[1762525234580,3.2078,3229.8,3229.7,0.7677]
[1762525235284,0.00464303,3230.1,3229.7,8.0]
[1762525235587,0.00464303,3230.1,3229.8,9.687]
[1762525235786,0.00464303,3230.1,3229.9,0.50188]
[1762525235979,0.00464303,3230.1,3230.0,0.50186]
[1762525236180,0.00464303,3230.1,3229.8,9.687]
[1762525236479,0.00313274,3231.1,3230.5,0.50178]
[1762525236480,0.50177,3230.6,3230.5,0.50178]
[1762525236680,3.2078,3230.7,3230.0,3.2078]
[1762525236681,0.50182,3230.3,3230.0,3.2078]
[1762525236884,0.5018,3230.4,3230.3,0.50181]
[1762525237090,0.1501,3230.5,3230.1,9.682]
[1762525237387,0.50182,3230.3,3230.0,3.2078]
[1762525237580,0.15474303,3230.5,3230.2,0.50183]
[1762525237886,0.15474303,3230.5,3230.0,3.2078]
[1762525238085,0.5018,3230.4,3230.2,0.50183]
[1762525238286,0.50183,3230.2,3230.1,10.18985]
[1762525238478,0.50183,3230.2,3230.1,0.50185]
[1762525238678,0.15474303,3230.5,3229.8,0.00464303]
[1762525238884,0.50188,3229.9,3229.8,0.00464303]
[1762525239284,3.96478,3229.9,3229.8,0.00464303]
[1762525240891,0.92693,3228.9,3227.9,3.2078]
[1762525241087,3.2078,3228.9,3227.9,6.2988]
[1762525241384,0.2507,3229.2,3228.3,3.2078]
[1762525241590,3.2078,3229.3,3229.1,0.50199]
[1762525241786,0.50194,3229.5,3228.9,6.052]
[1762525242486,3.2078,3229.3,3228.8,0.00803221]
[1762525242786,0.50202,3229.0,3228.8,0.00803221]
[1762525243092,3.2078,3228.9,3228.8,0.00803221]
[1762525243285,3.6327,3228.9,3228.8,0.00803221]
[1762525243692,3.6327,3228.9,3228.8,3.221e-05]
[1762525243989,0.50211,3228.4,3228.0,0.50217]
[1762525244283,3.70993,3228.3,3227.8,3.309]
[1762525244484,0.5021,3228.5,3228.3,0.50212]
[1762525244683,0.2507,3228.6,3227.9,9.697]
[1762525245089,0.50213,3228.3,3228.1,0.50216]
[1762525245288,0.2507,3228.0,3227.9,0.0074211]
[1762525245791,0.75287,3228.0,3227.9,0.0074211]
[1762525245987,1.17777,3228.0,3227.9,0.0074211]
[1762525247181,0.6756,3228.0,3227.9,0.5096111]
[1762525247387,0.2507,3228.0,3227.9,0.5096111]
[1762525247694,3.70993,3228.3,3228.1,0.50216]
[1762525247887,3.2078,3228.3,3228.0,0.50217]
[1762525248191,3.2078,3228.3,3227.9,0.0074211]
[1762525248192,0.2507,3228.0,3227.9,0.5096111]
[1762525248394,3.2078,3228.3,3227.9,0.0074211]
[1762525248592,3.2078,3228.3,3228.2,0.50214]
[1762525249691,3.2078,3228.3,3228.0,9.698]
[1762525249692,0.25890006,3228.6,3228.5,0.5021]
[1762525249888,0.2507,3228.0,3227.9,0.0074211]
[1762525250282,3.2078,3228.2,3227.9,0.0074211]
[1762525250795,3.2078,3228.2,3228.0,0.50217]
[1762525251095,3.2078,3228.2,3227.9,0.0074211]
[1762525251291,0.2507,3228.0,3227.9,0.0074211]
[1762525252094,3.2078,3228.2,3228.0,0.50217]
[1762525252397,0.76099006,3228.6,3228.4,0.50211]
[1762525252695,0.00820006,3228.6,3228.4,0.50211]
[1762525252890,3.2078,3229.5,3229.4,0.50196]
[1762525253095,3.2078,3229.5,3228.7,3.2078]
[1762525253588,0.7527,3229.2,3229.0,0.50201]
[1762525253788,0.25349267,3229.2,3229.1,0.502]
[1762525254088,0.00279267,3229.2,3229.1,0.502]
[1762525254891,0.00279267,3229.2,3229.1,8.502]
[1762525255093,0.00279267,3229.2,3229.1,17.9034]
[1762525255596,0.00464303,3229.4,3229.3,0.50197]
[1762525256194,0.2507,3230.4,3230.3,0.50182]
[1762525256398,0.25395397,3230.4,3230.3,0.50504353]
[1762525257092,0.25395397,3230.4,3230.3,0.00322353]
[1762525257499,0.67885397,3230.4,3230.3,0.00322353]
[1762525257890,1.18065397,3230.4,3230.3,0.00322353]
[1762525258700,0.67885397,3230.4,3230.3,0.50504353]
[1762525259102,1.18065397,3230.4,3230.3,0.50504353]
[1762525259595,0.25395397,3230.4,3230.3,0.50504353]
[1762525259794,0.00325397,3230.4,3230.3,0.50504353]
[1762525260189,0.00325397,3230.4,3230.3,0.00322353]
[1762525260395,0.00325397,3230.4,3230.3,8.50504353]
[1762525260599,3.21244303,3230.7,3230.6,0.50177]
[1762525260799,4.303e-05,3230.7,3230.6,0.50177]
[1762525260999,3.2078,3231.1,3230.6,15.8694]
[1762525261201,0.50177,3230.6,3230.5,3.2078]
[1762525261395,0.7377,3230.4,3230.3,0.00322353]
[1762525261695,0.88925,3230.1,3230.0,0.00464303]
[1762525262403,0.23890146,3230.4,3230.0,0.50650303]
[1762525262593,0.3874,3230.1,3230.0,0.00464303]
[1762525262800,0.50185,3230.1,3230.0,0.00703985]
[1762525263295,0.50185,3230.1,3230.0,0.50888985]
[1762525263496,0.50185,3230.1,3230.0,0.00703985]
[1762525264095,0.23890146,3230.4,3230.0,0.00703985]
[1762525264306,0.00300146,3230.4,3230.3,0.50182]
[1762525264804,0.74070146,3230.4,3230.2,6.431]
[1762525265003,0.74070146,3230.4,3230.3,0.50182]
[1762525265303,0.74070146,3230.4,3230.2,6.431]
[1762525266005,0.50185,3230.1,3230.0,0.00703985]
[1762525266197,0.50185,3230.2,3230.0,0.00703985]
[1762525267393,3.70965,3230.2,3230.0,0.00703985]
[1762525267596,0.50185,3230.1,3230.0,0.00703985]
[1762525267796,0.88925,3230.1,3230.0,0.00703985]
[1762525268599,3.2078,3230.2,3230.1,0.50185]
[1762525268803,3.1823447,3230.2,3230.1,0.50185]
[1762525269304,0.00300146,3230.4,3230.3,0.50182]
[1762525269698,0.50481146,3230.4,3230.0,0.00703985]
[1762525269910,0.88925,3230.1,3230.0,0.50890985]
[1762525270404,0.50184,3230.2,3230.1,0.50185]
[1762525270609,0.23890146,3230.4,3230.0,0.00703985]
[1762525270797,0.23890146,3230.4,3230.3,0.50182]
[1762525271505,0.23890146,3230.4,3230.3,10.18682]
[1762525272193,0.00300146,3230.4,3230.3,10.18682]
[1762525272594,0.00300146,3230.4,3230.3,24.37802]
[1762525272798,0.00300146,3230.4,3230.3,10.18682]
[1762525272998,0.00300146,3230.4,3230.3,0.50182]
[1762525273194,0.23890146,3230.4,3230.3,0.50182]
[1762525273398,0.88925,3230.1,3230.0,0.00703985]
[1762525274705,0.6233,3229.8,3229.2,3.2078]
[1762525274903,0.50196,3229.4,3229.1,3.102]
[1762525275205,0.50208,3228.7,3228.6,0.50208]
[1762525275395,0.50207,3228.8,3228.5,9.682]
[1762525275594,0.50207,3228.8,3228.7,0.50207]
[1762525275797,0.88947,3228.8,3228.7,0.0025141]
[1762525276005,4.09727,3228.8,3228.7,0.0025141]
[1762525276807,3.2078,3228.8,3228.7,0.0025141]
[1762525277203,3.5952,3228.8,3228.7,0.0025141]
[1762525278706,3.2078,3228.8,3228.7,0.5045841]
[1762525279109,3.94569,3229.2,3229.1,0.502]
[1762525279320,0.50202,3229.0,3228.7,0.0025141]
[1762525279506,0.88941,3229.1,3229.0,0.50201]
[1762525280008,0.50202,3229.1,3228.8,0.50205]
[1762525280207,0.50202,3229.1,3228.7,0.0025141]
[1762525280411,0.50202,3229.1,3228.9,0.50202]
[1762525280600,3.2078,3229.2,3229.1,0.502]
[1762525281211,3.2078,3229.2,3229.1,0.8772]
[1762525281420,3.2078,3229.2,3229.1,0.502]
[1762525282717,3.2078,3229.2,3228.7,0.0025141]
[1762525282911,0.50202,3229.0,3228.9,0.50202]
[1762525283110,0.50204,3228.9,3228.8,0.50205]
[1762525283311,0.88945,3228.8,3228.7,0.0025141]
[1762525283718,4.09725,3228.8,3228.7,0.0025141]
[1762525284011,1.12548,3228.0,3227.9,0.50218]
[1762525284313,4.33328,3228.0,3227.9,0.50218]
[1762525284509,3.8311,3228.0,3227.9,0.50218]
[1762525284710,3.2078,3228.5,3228.1,0.50216]
[1762525284911,0.2359,3227.4,3226.4,6.65165642]
[1762525285114,3.2078,3227.3,3227.2,0.5023]
[1762525285309,4.09742,3227.7,3227.6,0.50224]
[1762525285516,0.50225,3227.6,3227.5,0.50225]
[1762525285911,3.2078,3227.7,3227.4,0.50227]
[1762525286214,3.2078,3227.7,3226.6,0.00464303]
[1762525286215,0.3874,3226.7,3226.6,0.00464303]
[1762525286408,3.5952,3226.7,3226.6,0.00464303]
[1762525287509,3.2078,3226.7,3226.6,0.00464303]
[1762525289412,3.2078,3226.7,3225.0,11.3892]
[1762525289413,0.3693,3226.2,3225.0,0.2352]
[1762525289618,3.71029,3226.0,3225.4,0.50257]
[1762525289811,3.2078,3226.0,3225.7,0.50253]
[1762525290013,3.2078,3226.0,3225.8,0.50251]
[1762525290315,0.2273,3226.3,3225.6,3.21245029]
[1762525290614,0.00364382,3226.0,3225.8,0.50590473]
[1762525290812,0.00364382,3226.0,3225.9,0.3758]
[1762525291012,0.3693,3225.9,3225.8,0.00340473]
[1762525291216,3.71393382,3226.0,3225.8,0.00340473]
[1762525291917,3.21144382,3226.0,3225.8,0.50591473]
[1762525292117,0.00364382,3226.0,3225.8,0.50591473]
[1762525292313,0.00364382,3226.0,3225.9,0.3758]
[1762525292509,3.2078,3226.9,3226.7,0.50237]
[1762525292707,0.3693,3226.8,3225.8,0.00340473]
[1762525292913,3.2078,3226.5,3225.8,3.21120473]
[1762525293117,3.2078,3226.9,3226.2,3.2078]
[1762525293320,3.71015,3226.9,3226.7,0.50237]
[1762525293620,3.2078,3226.9,3226.7,0.50237]
[1762525294120,3.2078,3226.9,3226.5,9.823]
[1762525294321,0.50239,3226.7,3226.5,9.823]
[1762525294517,0.5024,3226.6,3226.3,0.50244]
[1762525294720,0.3693,3225.7,3225.6,0.00465029]
[1762525294911,3.2078,3225.7,3224.4,3.2078]
[1762525295118,3.2078,3225.7,3224.9,0.2319]
[1762525295320,0.50258,3225.5,3224.9,0.2319]
[1762525295620,3.71034,3225.7,3225.5,0.50256]
[1762525295823,0.50255,3225.6,3225.5,0.00358719]
[1762525296010,0.50255,3225.6,3225.5,0.37938719]
[1762525296321,0.3693,3226.8,3226.7,0.50237]
[1762525296524,0.00241721,3226.9,3226.7,0.50237]
[1762525297323,3.2078,3227.8,3227.7,0.50222]
[1762525297824,0.73808,3228.0,3227.8,0.50219]
[1762525298119,3.2078,3227.9,3227.5,9.904]
[1762525298316,11.2078,3227.9,3227.4,0.00465029]
[1762525298512,0.50229,3227.3,3226.3,0.2319]
[1762525298712,0.50228,3227.4,3226.3,0.2319]
[1762525298916,3.2078,3227.5,3226.4,3.2078]
[1762525299111,0.50227,3227.4,3226.4,3.2078]
[1762525299320,0.50227,3227.4,3227.2,0.5023]
[1762525299520,3.71006,3227.5,3227.3,0.50228]
[1762525300222,3.71006,3227.5,3227.2,0.50229]
[1762525300418,0.50235,3226.9,3226.6,0.00465029]
[1762525300721,0.50232,3227.1,3226.6,0.00465029]
[1762525300921,3.2078,3227.3,3226.7,9.951]
[1762525301217,0.5023,3227.2,3226.7,9.951]
[1762525301726,3.2078,3227.3,3227.1,0.5023]
[1762525302318,3.2078,3227.3,3227.2,9.95]
[1762525302921,0.50224,3227.6,3227.4,0.50225]
[1762525303110,3.2078,3227.7,3226.8,3.2078]
[1762525303317,0.50224,3227.6,3227.4,0.50226]
[1762525303823,0.50225,3227.5,3227.4,5.829]
[1762525304024,3.2078,3227.7,3227.5,0.50225]
[1762525304323,3.2078,3227.7,3227.6,0.50224]
[1762525304522,0.00815027,3228.0,3227.9,0.50219]
[1762525305819,0.00815027,3228.0,3227.9,10.44519]
[1762525307023,0.00815027,3228.0,3227.9,10.79259]
[1762525307216,0.00815027,3228.0,3227.9,24.98859]
[1762525307413,0.00815027,3228.0,3227.9,18.79259]
[1762525307618,3.2078,3228.6,3228.5,0.8495]
[1762525308127,3.2078,3229.6,3229.5,0.50194]
[1762525308317,3.70973,3229.6,3229.5,0.50194]
[1762525308626,3.2109131,3229.6,3229.5,0.50444101]
[1762525308817,3.7128431,3229.6,3229.5,0.00250101]
[1762525310518,3.2109131,3229.6,3229.5,0.50444101]
[1762525312127,4.0748431,3229.6,3229.5,0.00250101]
[1762525312824,4.0748431,3229.6,3229.5,0.50444101]
[1762525313020,4.0748431,3229.6,3229.5,0.00250101]
[1762525313527,3.2109131,3229.6,3229.5,0.50444101]
[1762525313723,3.2109131,3229.6,3229.5,0.85184101]
[1762525314028,0.5018,3230.4,3230.3,0.50182]
[1762525314029,3.2078,3230.4,3230.3,0.50182]
[1762525314215,4.29648,3231.2,3231.1,0.50169]
[1762525314419,3.7948,3231.2,3230.2,3.2078]
[1762525314623,3.2078,3230.7,3230.6,0.50177]
[1762525314823,3.5698,3230.7,3230.6,0.50177]
[1762525315025,3.57296013,3230.7,3230.4,0.50179]
[1762525315231,0.0508,3230.5,3229.8,9.891]
[1762525315426,0.50191,3229.8,3229.5,0.00250101]
[1762525315726,0.50193,3229.6,3229.5,4.24944101]
[1762525315928,0.50193,3229.6,3229.5,3.74750101]
[1762525316126,3.2078,3230.0,3229.5,0.00250101]
[1762525316531,0.86393,3229.6,3229.5,0.00250101]
[1762525316729,4.07173,3229.6,3229.5,0.00250101]
[1762525316920,3.2078,3229.6,3229.5,0.50444101]
[1762525317232,3.70973,3229.6,3229.5,0.50444101]
[1762525317635,4.07173,3229.6,3229.5,0.50444101]
[1762525317928,3.5698,3229.6,3229.5,0.50444101]
[1762525318124,3.2078,3230.1,3229.8,0.50189]
[1762525318327,0.50191,3229.7,3229.5,0.00250101]
[1762525318526,3.5698,3229.6,3229.5,9.89850101]
[1762525318726,3.2078,3229.6,3229.5,10.40044101]
[1762525318933,0.0508,3230.5,3229.5,10.40044101]
[1762525318934,0.5019,3229.8,3229.7,0.5019]
[1762525319137,0.3511,3229.9,3229.5,0.00250101]
[1762525319334,0.50188,3229.9,3229.5,0.00250101]
[1762525319544,3.2078,3230.0,3229.5,0.00250101]
[1762525319737,0.50193,3229.6,3229.5,0.50443101]
[1762525320045,0.50191,3229.7,3229.6,0.50191]
[1762525320244,0.50192,3229.6,3229.5,0.00250101]
[1762525320637,4.06082,3229.6,3229.5,0.00250101]
[1762525321140,12.06082,3229.6,3229.5,0.00250101]
[1762525321345,12.06082,3229.6,3229.5,1.01e-06]
[1762525321530,0.85304,3229.5,3229.4,4.389e-05]
[1762525321938,0.3511,3229.5,3229.4,4.389e-05]
[1762525322140,0.85304,3229.5,3229.4,4.389e-05]
[1762525322539,0.85304,3229.5,3229.4,0.50552628]
[1762525322739,0.85304,3229.5,3229.4,0.00356628]
[1762525324837,3.2078,3229.6,3229.5,0.50194]
[1762525325241,3.5589,3230.0,3229.9,0.50188]
[1762525325945,3.2078,3230.0,3229.9,0.50188]
[1762525326546,0.85304,3229.5,3229.4,0.00356628]
[1762525327643,0.50205,3228.8,3228.7,3.2078]
[1762525328541,3.7098,3229.1,3228.7,3.2078]
[1762525328739,3.2078,3229.5,3229.4,0.50196]
[1762525330448,3.70976,3229.5,3229.3,0.50196]
[1762525330651,3.70974,3229.5,3228.7,3.21012311]
[1762525331146,0.00464288,3229.8,3229.5,0.50193]
[1762525331350,0.50195,3229.5,3229.4,0.50196]
[1762525331846,3.2078,3229.5,3228.7,3.21012311]
[1762525332051,0.50198,3229.3,3228.8,9.857]
[1762525332240,3.70975,3229.5,3228.8,9.857]
[1762525332446,3.2078,3229.5,3229.4,0.50196]
[1762525332642,3.2078,3229.5,3228.8,9.857]
[1762525333452,3.2078,3229.5,3229.4,0.50196]
[1762525333647,3.70974,3229.5,3229.4,0.50196]
[1762525333951,0.50655288,3229.8,3229.7,0.50191]
[1762525334150,0.00464288,3229.8,3229.7,0.50191]
[1762525335049,0.50194,3229.6,3229.4,0.50194]
[1762525335238,3.2078,3229.6,3228.7,3.21012311]
[1762525335441,0.3511,3229.2,3229.1,0.50199]
[1762525335741,3.2078,3229.6,3229.5,0.50194]
[1762525335942,0.50194,3229.5,3229.4,0.50195]
[1762525336139,0.85309,3229.2,3229.1,0.502]
[1762525336347,0.85314,3229.0,3228.9,0.50203]
[1762525337139,0.85314,3228.9,3228.8,0.50205]
[1762525337338,0.3511,3228.8,3228.7,3.71218311]
[1762525337653,4.06092,3229.1,3229.0,0.50202]
[1762525337951,0.85313,3228.9,3228.8,0.50203]
[1762525338148,0.85315,3228.8,3228.7,0.00232311]
[1762525338353,1.645293,3228.8,3228.7,2.311e-05]
[1762525338554,0.50214,3228.2,3228.1,0.50214]
[1762525338755,3.70996,3228.2,3227.6,9.841]
[1762525339054,3.2078,3228.2,3228.1,0.85366]
[1762525339249,3.2078,3228.8,3228.7,0.50207]
[1762525339549,3.56234676,3228.8,3228.7,0.50568942]
[1762525339949,12.85704342,3228.8,3228.7,0.00361942]
[1762525340248,4.85704342,3228.8,3228.7,0.00361942]
[1762525340452,0.00344676,3228.8,3228.7,0.50568942]
[1762525341257,0.00344676,3228.8,3228.7,0.85718942]
[1762525342256,0.00344676,3228.8,3228.7,0.00361942]
[1762525342461,0.85659676,3228.8,3228.7,0.50568942]
[1762525342853,0.85659676,3228.8,3228.7,0.00361942]
[1762525343658,0.85659676,3228.8,3228.7,0.50568942]
[1762525343859,0.00344676,3228.8,3228.7,0.85718942]
[1762525344760,0.00344676,3228.8,3228.7,0.00361942]
[1762525344965,0.50549676,3228.8,3228.7,0.00361942]
[1762525345164,0.85659676,3228.8,3228.7,0.00361942]
[1762525345559,4.06439676,3228.8,3228.7,0.00361942]
[1762525346168,3.56234676,3228.8,3228.7,0.50568942]
[1762525346367,4.06439676,3228.8,3228.7,0.50568942]
[1762525346565,4.06439676,3228.8,3228.7,0.00361942]
[1762525346865,4.00412173,3228.8,3228.7,0.00361942]
[1762525347068,3.21124676,3228.8,3228.7,0.00361942]
[1762525347363,0.8532,3228.5,3228.4,0.00464288]
[1762525347876,0.85324,3228.2,3228.1,0.50216]
[1762525348058,3.2078,3228.3,3227.5,3.2078]
[1762525348262,0.85334,3227.6,3227.5,0.50225]
[1762525348463,0.85334,3227.6,3227.5,0.50595417]
[1762525348968,3.21244288,3227.9,3227.8,0.50221]